lending/lending_fUSD_20250411
["ID","MTS","AMOUNT","RATE_DAILY","PERIOD"]
[357731518,1744398633812,-200.0,0.00025807,2]
[357731519,1744398633822,-23193.4526,0.000259,2]
[357731521,1744398633832,-5048.75406271,0.00025956,2]
[357731522,1744398633842,-577.68711718,0.0002599,2]
[357731524,1744398633852,-4351.82820938,0.00026,2]
[357731526,1744398633862,-3058.54947289,0.00026,2]
[357731528,1744398633872,-162.380719,0.00026011,2]
[357731530,1744398633882,-223.0315306,0.00026011,2]
[357731532,1744398633892,-325.59,0.00026027,2]
[357731534,1744398633903,-336.65,0.000261,2]
[357731536,1744398633913,-2369.29,0.000261,2]
[357731538,1744398633923,-8828.22,0.000261,2]
[357731540,1744398633932,-880.21086646,0.0002627,2]
[357731541,1744398633942,-1000.0,0.00026329,2]
[357731543,1744398633952,-1448.42,0.00026332,2]
[357731545,1744398633961,-156.36,0.00026347,2]
[357731547,1744398633971,-150.0,0.00026366,2]
[357731549,1744398633981,-500.0,0.00026399,2]
[357731551,1744398633991,-186.36496032,0.00026399,2]
[357731553,1744398634002,-500.0,0.00026399,2]
[357731554,1744398634012,-230.10444676,0.00026399,2]
[357731556,1744398634022,-172.69893875,0.00026399,2]
[357731558,1744398634032,-500.0,0.00026399,2]
[357731560,1744398634042,-500.0,0.00026399,2]
[357731562,1744398634052,-500.0,0.00026399,2]
[357731564,1744398634061,-500.0,0.00026399,2]
[357731566,1744398634072,-500.0,0.00026399,2]
[357731568,1744398634082,-500.0,0.00026399,2]
[357731569,1744398634092,-500.0,0.00026399,2]
[357731571,1744398634102,-500.0,0.00026399,2]
[357731573,1744398634112,-500.0,0.00026399,2]
[357731575,1744398634122,-572.46419269,0.00026399,2]
[357731577,1744398634133,-500.0,0.00026399,2]
[357731579,1744398634143,-500.0,0.00026399,2]
[357731581,1744398634153,-500.0,0.00026399,2]
[357731582,1744398634163,-500.0,0.00026399,2]
[357731584,1744398634172,-500.0,0.00026399,2]
[357731586,1744398634182,-400.0,0.00026399,2]
[357731588,1744398634192,-25713.433279,0.000264,2]
[357731590,1744398634202,-150.0,0.00026845,2]
[357731592,1744398634211,-907.0,0.00026845,2]
[357731594,1744398634221,-479.961,0.00026845,2]
[357731595,1744398634231,-1278.0,0.00026845,2]
[357731596,1744398634240,-574.0,0.00026845,2]
[357731597,1744398634250,-4143.0,0.00026845,2]
[357731598,1744398634260,-3961.0,0.00026845,2]
[357731599,1744398634269,-152.0,0.00026845,2]
[357731600,1744398634279,-154.0,0.00026845,2]
[357731601,1744398634289,-853.67,0.00026849,2]
[357731602,1744398634299,-450.0,0.00027,2]
[357731603,1744398634309,-154.69137995,0.00027117,2]
[357731604,1744398634319,-22675.39806441,0.0002716,2]
[357731605,1744398634328,-168.3888056,0.0002738,2]
[357731606,1744398634338,-231.28369723,0.0002738,2]
[357731607,1744398634348,-325.59,0.00027397,2]
[357731608,1744398634358,-500.0,0.00027397,2]
[357731609,1744398634369,-500.0,0.00027397,2]
[357731610,1744398634379,-500.0,0.00027397,2]
[357731611,1744398634389,-500.0,0.00027397,2]
[357731612,1744398634400,-500.0,0.00027397,2]
[357731613,1744398634409,-500.0,0.00027397,2]
[357731614,1744398634420,-500.0,0.00027397,2]
[357731615,1744398634430,-500.0,0.00027397,2]
[357731616,1744398634440,-500.0,0.00027397,2]
[357731617,1744398634451,-500.0,0.00027397,2]
[357731618,1744398634461,-500.0,0.00027397,2]
[357731619,1744398634471,-500.0,0.00027397,2]
[357731620,1744398634481,-500.0,0.00027397,2]
[357731621,1744398634491,-500.0,0.00027397,2]
[357731622,1744398634501,-500.0,0.00027397,2]
[357731623,1744398634511,-196.70134006,0.00027397,2]
[357731624,1744398634521,-500.0,0.00027397,2]
[357731625,1744398634531,-500.0,0.00027397,2]
[357731626,1744398634541,-500.0,0.00027397,2]
[357731627,1744398634552,-500.0,0.00027397,2]
[357731628,1744398634562,-500.0,0.00027397,2]
[357731629,1744398634573,-500.0,0.00027397,2]
[357731630,1744398634583,-500.0,0.00027397,2]
[357731631,1744398634592,-500.0,0.00027397,2]
[357731632,1744398634604,-1383.32,0.00027397,2]
[357731633,1744398634615,-441.0,0.000274,2]
[357731634,1744398634625,-914.0,0.000274,2]
[357731635,1744398634635,-200.0,0.00027425,2]
[357731636,1744398634647,-500.0,0.00027452,2]
[357731637,1744398634656,-500.0,0.00027452,2]
[357731638,1744398634666,-500.0,0.00027452,2]
[357731639,1744398634676,-500.0,0.00027452,2]
[357731640,1744398634687,-500.0,0.00027452,2]
[357731641,1744398634697,-500.0,0.00027452,2]
[357731642,1744398634706,-500.0,0.00027507,2]
[357731643,1744398634716,-500.0,0.00027507,2]
[357731644,1744398634725,-500.0,0.00027507,2]
[357731645,1744398634735,-500.0,0.00027507,2]
[357731646,1744398634744,-500.0,0.00027507,2]
[357731647,1744398634754,-500.0,0.00027507,2]
[357731648,1744398634763,-564.0,0.00027561,2]
[357731649,1744398634772,-500.0,0.00027561,2]
[357731650,1744398634782,-609.82621995,0.00027561,2]
[357731651,1744398634791,-500.0,0.00027561,2]
[357731652,1744398634801,-500.0,0.00027561,2]
[357731653,1744398634810,-639.32637193,0.00027561,2]
[357731654,1744398634820,-156.36,0.00027601,2]
[357731655,1744398634830,-581.7587454,0.00027616,2]
[357731656,1744398634839,-500.0,0.00027616,2]
[357731657,1744398634849,-997.0,0.00027616,2]
[357731658,1744398634859,-505.31215281,0.00027671,2]
[357731659,1744398634868,-200.0,0.00027699,2]
[357731660,1744398634878,-5048.75406271,0.00027947,2]
[357731661,1744398634887,-200.0,0.00027976,2]
[357731662,1744398634897,-1152.0,0.00027986,2]
[357731663,1744398634906,-200.0,0.00028256,2]
[357731664,1744398634916,-6586.30275366,0.00028375,2]
[357731665,1744398634925,-304.39,0.00028475,2]
[357731666,1744398634934,-302.99,0.00028476,2]
[357731667,1744398634944,-300.36,0.00028476,2]
[357731668,1744398634953,-302.63,0.00028476,2]
[357731669,1744398634962,-305.42,0.00028476,2]
[357731670,1744398634972,-301.24,0.00028476,2]
[357731671,1744398634981,-305.7,0.00028476,2]
[357731672,1744398634990,-303.43,0.00028476,2]
[357731673,1744398635000,-301.53,0.00028476,2]
[357731674,1744398635009,-301.94,0.00028476,2]
[357731675,1744398635018,-301.38,0.00028476,2]
[357731676,1744398635027,-303.96,0.00028476,2]
[357731677,1744398635038,-300.43,0.00028483,2]
[357731678,1744398635047,-301.84,0.00028529,2]
[357731679,1744398635056,-200.0,0.00028539,2]
[357731680,1744398635066,-1448.42,0.00028596,2]
[357731681,1744398635075,-194.41,0.00028712,2]
[357731682,1744398635085,-174.61919141,0.00028749,2]
[357731683,1744398635095,-400.0,0.00028749,2]
[357731684,1744398635104,-325.59,0.00028767,2]
[357731685,1744398635114,-1383.32,0.00028767,2]
[357731686,1744398635124,-302.38,0.00028819,2]
[357731687,1744398635134,-300.8,0.00028819,2]
[357731688,1744398635143,-156.36,0.00028856,2]
[357731689,1744398635153,-500.0,0.00029,2]
[357731690,1744398635163,-1000.0,0.00029254,2]
[357731691,1744398635173,-2598.68,0.00029845,2]
[357731692,1744398635182,-151.0,0.00029845,2]
[357731693,1744398635192,-5048.75406271,0.00029938,2]
[357731694,1744398635201,-2069.99999901,0.0003,3]
[357731695,1744398635211,-19162.15122414,0.0003,2]
[357731696,1744398635220,-6586.30275366,0.00030084,2]
[357731697,1744398635230,-156.36,0.00030111,2]
[357731698,1744398635239,-181.08010149,0.00030118,2]
[357731699,1744398635249,-325.59,0.00030136,2]
[357731700,1744398635259,-1383.32,0.00030137,2]
[357731701,1744398635268,-2369.29,0.000304,2]
[357731702,1744398635279,-8828.22,0.000304,2]
[357731703,1744398635450,-1613.0,0.00030477,2]
[357731704,1744398635460,-1448.42,0.0003086,2]
[357731705,1744398635470,-1000.0,0.00030986,5]
[357731706,1744398635480,-550.0,0.00031,2]
[357731707,1744398635490,-156.36,0.00031365,2]
[357731708,1744398635499,-271.9198985,0.00031487,2]
[357731709,1744398635510,-325.59,0.00031506,2]
[357731710,1744398635519,-1383.32,0.00031507,2]
[357731711,1744398635529,-6586.30275366,0.00031794,2]
[357731712,1744398635539,-5048.75406271,0.00031929,2]
[357731713,1744398635548,-1000.0,0.0003218,2]
[357731714,1744398635558,-238.89,0.00032315,30]
[357731715,1744398635568,-156.36,0.0003262,2]
[357731716,1744398635578,-853.67,0.00032646,2]
[357731717,1744398635587,-154.69137993,0.0003276,2]
[357731718,1744398635597,-325.59,0.00032876,2]
[357731719,1744398635610,-1383.32,0.00032877,2]
[357731720,1744398635620,-500.0,0.00032877,2]
[357731721,1744398635630,-600.0,0.00033,2]
[357731722,1744398635639,-1800.0,0.00033,34]
[357731723,1744398635651,-150.0,0.00033,2]
[357731724,1744398635661,-1448.42,0.00033124,2]
[357731725,1744398635671,-209.0,0.0003317,30]
[357731726,1744398635682,-2258.0,0.0003319,2]
[357731727,1744398635692,-155.24,0.00033344,2]
[357731728,1744398635702,-150.0,0.00033344,2]
[357731729,1744398635711,-150.0,0.00033344,2]
[357731730,1744398635721,-150.0,0.00033344,2]
[357731731,1744398635730,-150.0,0.00033344,2]
[357731732,1744398635739,-150.0,0.00033344,2]
[357731733,1744398635748,-150.0,0.00033344,2]
[357731734,1744398635758,-150.0,0.00033344,2]
[357731735,1744398635767,-6586.30275366,0.00033503,2]
[357731736,1744398635777,-500.0,0.00033589,5]
[357731737,1744398635787,-502.76189329,0.00033589,5]
[357731738,1744398635796,-214.00618874,0.0003363,5]
[357731739,1744398635806,-2369.29,0.000337,2]
[357731740,1744398635816,-8828.22,0.000337,2]
[357731741,1744398635826,-879.82,0.0003376,2]
[357731742,1744398635836,-879.82,0.00033769,2]
[357731743,1744398635845,-879.82,0.00033777,2]
[357731744,1744398635855,-879.82,0.00033786,2]
[357731745,1744398635865,-879.82,0.00033795,2]
[357731746,1744398635875,-879.82,0.00033804,2]
[357731747,1744398635885,-879.82,0.00033813,2]
[357731748,1744398635895,-879.82,0.00033822,2]
[357731749,1744398635904,-879.82,0.00033831,2]
[357731750,1744398635914,-879.82,0.0003384,2]
[357731751,1744398635924,-879.82,0.00033848,2]
[357731752,1744398635933,-879.82,0.00033857,2]
[357731753,1744398635943,-879.82,0.00033866,2]
[357731754,1744398635953,-156.36,0.00033874,2]
[357731755,1744398635963,-879.82,0.00033875,2]
[357731756,1744398635973,-879.82,0.00033884,2]
[357731757,1744398635982,-879.82,0.00033893,2]
[357731758,1744398635991,-879.82,0.00033902,2]
[357731759,1744398636001,-879.82,0.00033911,2]
[357731760,1744398636010,-879.82,0.00033919,2]
[357731761,1744398636019,-5048.75406271,0.00033921,2]
[357731762,1744398636029,-879.82,0.00033928,2]
[357731763,1744398636038,-1800.0,0.00034,35]
[357731764,1744398636048,-209.0,0.000341,30]
[357731765,1744398636058,-1442.92,0.00034103,2]
[357731766,1744398636067,-578.05390483,0.00034132,33]
[357731767,1744398636076,-15258.8645318,0.00034237,3]
[357731768,1744398636086,-325.59,0.00034246,2]
[357731769,1744398636095,-631.7518136,0.00034247,7]
[357731770,1744398636105,-631.7518136,0.00034247,7]
[357731771,1744398636114,-631.7518136,0.00034247,7]
[357731772,1744398636123,-631.7518136,0.00034247,7]
[357731773,1744398636133,-631.7518136,0.00034247,7]
[357731774,1744398636142,-631.7518136,0.00034247,7]
[357731775,1744398636151,-631.7518136,0.00034247,7]
[357731776,1744398636161,-631.7518136,0.00034247,7]
[357731777,1744398636170,-631.7518136,0.00034247,7]
[357731778,1744398636180,-631.7518136,0.00034247,7]
[357731779,1744398636189,-631.7518136,0.00034247,7]
[357731780,1744398636199,-631.7518136,0.00034247,7]
[357731781,1744398636208,-631.7518136,0.00034247,7]
[357731782,1744398636218,-631.7518136,0.00034247,7]
[357731783,1744398636228,-631.7518136,0.00034247,7]
[357731784,1744398636237,-631.7518136,0.00034247,7]
[357731785,1744398636246,-631.7518136,0.00034247,7]
[357731786,1744398636256,-631.7518136,0.00034247,7]
[357731787,1744398636265,-631.7518136,0.00034247,7]
[357731788,1744398636274,-631.7518136,0.00034247,7]
[357731789,1744398636284,-703.95202088,0.00034247,7]
[357731790,1744398636294,-703.95202088,0.00034247,7]
[357731791,1744398636303,-703.95202088,0.00034247,7]
[357731792,1744398636312,-703.95202088,0.00034247,7]
[357731793,1744398636322,-703.95202088,0.00034247,7]
[357731794,1744398636331,-703.95202088,0.00034247,7]
[357731795,1744398636340,-703.95202088,0.00034247,7]
[357731796,1744398636349,-151.52,0.0003429,2]
[357731797,1744398636359,-2369.29,0.000343,2]
[357731798,1744398636369,-8828.22,0.000343,2]
[357731799,1744398636379,-1336.0,0.000346,7]
[357731800,1744398636390,-1298.791,0.00034738,39]
[357731801,1744398636399,-1000.0,0.00034866,2]
[357731802,1744398636409,-193.0529274,0.000349,4]
[357731803,1744398636418,-380.12402924,0.000349,2]
[357731804,1744398636428,-197.3858004,0.000349,7]
[357731805,1744398636437,-221.97225823,0.00034924,2]
[357731806,1744398636447,-200.0,0.0003495,10]
[357731807,1744398636456,-15258.8645318,0.00034968,3]
[357731808,1744398636466,-61035.4581272,0.0003497,3]
[357731809,1744398636475,-151.52,0.0003497,2]
[357731810,1744398636485,-500.0,0.00034973,5]
[357731811,1744398636494,-500.0,0.00034973,5]
[357731812,1744398636503,-500.0,0.00034973,5]
[357731813,1744398636512,-159.86070782,0.00034973,5]
[357731814,1744398636522,-500.37117842,0.00034973,5]
[357731815,1744398636531,-500.0,0.00034973,5]
[357731816,1744398636541,-500.0,0.00034973,5]
[357731817,1744398636550,-15258.8645318,0.00034978,3]
[357731818,1744398636559,-137329.780786,0.0003498,3]
[357731819,1744398636570,-151.52,0.0003498,2]
[357731820,1744398636579,-40625.61119065,0.00034988,3]
[357731821,1744398636589,-213624.103445,0.0003499,3]
[357731822,1744398636598,-151.52,0.0003499,2]
[357731823,1744398636612,-151.52,0.0003499,2]
[357731824,1744398636622,-171.04043135,0.0003499,2]
[357731825,1744398636632,-71520.78274501,0.00035,4]
[357731826,1744398636641,-151.0,0.00035,7]
[357731827,1744398636651,-151.0,0.00035,7]
[357731828,1744398636661,-151.0,0.00035,7]
[357731829,1744398636671,-152.665481,0.00035,7]
[357731830,1744398636681,-152.094387,0.00035,7]
[357731831,1744398636691,-151.0,0.00035,7]
[357731832,1744398636701,-151.0,0.00035,7]
[357731833,1744398636711,-151.0,0.00035,7]
[357731834,1744398636722,-151.0,0.00035,7]
[357731835,1744398636732,-255.62006493,0.00035,7]
[357731836,1744398636742,-159.86,0.00035,2]
[357731837,1744398636751,-650.0,0.00035,2]
[357731838,1744398636761,-352379.52397605,0.00035,2]
[357731839,1744398636771,-1800.0,0.00035,36]
[357731840,1744398636780,-209.0,0.0003502,30]
[357731841,1744398636789,-229.7969621,0.00035047,2]
[357731842,1744398636798,-150.0,0.00035047,2]
[357731843,1744398636808,-1000.0,0.0003506,2]
[357731844,1744398636817,-425.12,0.00035068,2]
[357731845,1744398636827,-500.0,0.00035073,5]
[357731846,1744398636837,-1000.0,0.00035105,2]
[357731847,1744398636847,-150.0,0.00035129,2]
[357731848,1744398636856,-150.0,0.00035134,2]
[357731849,1744398636866,-150.0,0.00035187,2]
[357731850,1744398636876,-150.0,0.00035189,2]
[357731851,1744398636886,-150.0,0.00035189,2]
[357731852,1744398636896,-15258.8645318,0.00035203,3]
[357731853,1744398636906,-6586.30275366,0.00035213,2]
[357731854,1744398636915,-683.01882305,0.00035243,2]
[357731855,1744398636925,-150.0,0.00035279,2]
[357731856,1744398636935,-150.0,0.00035295,2]
[357731857,1744398636944,-1026.0,0.000353,7]
[357731858,1744398636953,-1000.0,0.00035334,2]
[357731859,1744398636963,-150.0,0.00035359,2]
[357731860,1744398636972,-166.66,0.0003536,2]
[357731861,1744398636982,-1448.42,0.00035388,2]
[357731862,1744398636991,-150.0,0.00035404,2]
[357731863,1744398637001,-150.0,0.00035404,2]
[357731864,1744398637011,-150.0,0.00035413,2]
[357731865,1744398637021,-150.0,0.00035439,2]
[357731866,1744398637030,-1000.0,0.0003545,2]
[357731867,1744398637040,-150.0,0.00035451,2]
[357731868,1744398637049,-150.0,0.00035455,2]
[357731869,1744398637059,-150.0,0.00035458,2]
[357731870,1744398637068,-214.63194457,0.00035489,2]
[357731871,1744398637078,-150.0,0.0003551,2]
[357731872,1744398637087,-150.0,0.00035517,2]
[357731873,1744398637096,-150.0,0.00035533,2]
[357731874,1744398637106,-150.0,0.00035578,2]
[357731875,1744398637116,-150.0,0.00035609,2]
[357731876,1744398637125,-150.0,0.00035612,2]
[357731877,1744398637135,-5617.26,0.00035616,3]
[357731878,1744398637144,-325.59,0.00035616,2]
[357731879,1744398637153,-150.0,0.00035733,2]
[357731880,1744398637163,-150.0,0.00035765,2]
[357731881,1744398637172,-1000.0,0.00035784,7]
[357731882,1744398637181,-150.0,0.00035804,2]
[357731883,1744398637191,-2000.0,0.0003581,3]
[357731884,1744398637200,-150.0,0.00035826,2]
[357731885,1744398637209,-150.0,0.00035863,2]
[357731886,1744398637219,-349.18194398,0.000359,2]
[357731887,1744398637228,-160.0,0.000359,120]
[357731888,1744398637237,-150.0,0.00035906,2]
[357731889,1744398637246,-5048.75406271,0.00035912,2]
[357731890,1744398637256,-150.0,0.00035923,2]
[357731891,1744398637265,-209.0,0.0003594,30]
[357731892,1744398637275,-150.0,0.00035969,2]
[357731893,1744398637284,-5635.0,0.00035973,120]
[357731894,1744398637294,-150.0,0.00035977,2]
[357731895,1744398637303,-150.0,0.00035978,2]
[357731896,1744398637312,-1010.24143362,0.0003598,2]
[357731897,1744398637322,-151.0,0.0003599,7]
[357731898,1744398637331,-151.0,0.0003599,7]
[357731899,1744398637341,-223.654894,0.0003599,7]
[357731900,1744398637350,-223.654894,0.0003599,7]
[357731901,1744398637359,-151.0,0.0003599,7]
[357731902,1744398637369,-151.52,0.0003599,2]
[357731903,1744398637379,-151.52,0.0003599,2]
[357731904,1744398637389,-188.0,0.00036,120]
[357731905,1744398637399,-386584.01120142,0.00036,2]
[357731909,1744398638043,-989.2778585,0.00036,2]
[357731910,1744398638059,-331.89658474,0.00036,2]
[357731911,1744398638071,-36792.94916044,0.00036,2]
[357731914,1744398638195,-184.32077119,0.000198,2]
[357731915,1744398638204,-331.99653271,0.00023845,2]
[357731916,1744398638216,-788.00346729,0.00023845,2]
[357731917,1744398638225,-2916.5740062,0.00036,2]
[357731918,1744398638237,-507.64481284,0.00036,2]
[357731919,1744398638248,-1652.40000001,0.00036,2]
[357731920,1744398638359,-46304.39782875,0.00036,2]
[357731921,1744398638368,-643.89117506,0.00036,2]
[357731922,1744398638378,-300.0,0.00036,2]
[357731923,1744398638387,-19707.91847387,0.00036,2]
[357731924,1744398638396,-1800.0,0.00036,37]
[357731925,1744398638406,-271.9,0.00036,120]
[357731926,1744398638415,-151.0,0.00036,7]
[357731927,1744398638424,-151.0,0.00036,7]
[357731928,1744398638434,-151.0,0.00036,7]
[357731929,1744398638443,-285.04013,0.00036,7]
[357731930,1744398638452,-151.0,0.00036,7]
[357731931,1744398638461,-152.30327,0.00036,7]
[357731932,1744398638471,-151.0,0.00036,7]
[357731933,1744398638480,-151.0,0.00036,7]
[357731934,1744398638490,-151.0,0.00036,7]
[357731935,1744398638499,-151.0,0.00036,7]
[357731936,1744398638508,-153.120503,0.00036,7]
[357731937,1744398638518,-151.0,0.00036,7]
[357731938,1744398638527,-223.654894,0.00036,7]
[357731939,1744398638536,-223.654894,0.00036,7]
[357731940,1744398638545,-151.851974,0.00036,7]
[357731941,1744398638554,-151.0,0.00036,7]
[357731942,1744398638563,-151.0,0.00036,7]
[357731943,1744398638573,-151.0,0.00036,7]
[357731944,1744398638582,-151.0,0.00036,7]
[357731945,1744398638591,-151.0,0.00036,7]
[357731946,1744398638600,-151.0,0.00036,7]
[357731947,1744398638613,-210.392151,0.00036,7]
[357731948,1744398638622,-151.0,0.00036,7]
[357731949,1744398638632,-151.0,0.00036,7]
[357731950,1744398638641,-212.689921,0.00036,7]
[357731951,1744398638651,-153.277693,0.00036,7]
[357731952,1744398638660,-151.0,0.00036,7]
[357731953,1744398638669,-151.0,0.00036,7]
[357731954,1744398638679,-151.0,0.00036,7]
[357731955,1744398638690,-151.0,0.00036,7]
[357731956,1744398638700,-173.809055,0.00036,7]
[357731958,1744398638709,-173.809055,0.00036,7]
[357731959,1744398638719,-151.0,0.00036,7]
[357731961,1744398638728,-151.0,0.00036,7]
[357731963,1744398638738,-151.0,0.00036,7]
[357731965,1744398638748,-151.0,0.00036,7]
[357731967,1744398638757,-151.0,0.00036,7]
[357731969,1744398638767,-215.969533,0.00036,7]
[357731971,1744398638777,-215.969533,0.00036,7]
[357731973,1744398638786,-456.886085,0.00036,7]
[357731975,1744398638795,-1089.331488,0.00036,7]
[357731977,1744398638804,-456.886085,0.00036,7]
[357731979,1744398638814,-151.0,0.00036,7]
[357731980,1744398638823,-1089.331488,0.00036,7]
[357731982,1744398638833,-151.0,0.00036,7]
[357731984,1744398638843,-151.0,0.00036,7]
[357731986,1744398638852,-151.0,0.00036,7]
[357731988,1744398638862,-151.0,0.00036,7]
[357731990,1744398638871,-151.0,0.00036,7]
[357731992,1744398638881,-151.0,0.00036,7]
[357731994,1744398638891,-151.0,0.00036,7]
[357731996,1744398638900,-151.0,0.00036,7]
[357731998,1744398638910,-151.0,0.00036,7]
[357732000,1744398638919,-151.0,0.00036,7]
[357732002,1744398638928,-151.0,0.00036,7]
[357732003,1744398638938,-151.0,0.00036,7]
[357732004,1744398638947,-151.0,0.00036,7]
[357732005,1744398638956,-153.133755,0.00036,7]
[357732006,1744398638967,-151.0,0.00036,7]
[357732007,1744398638977,-151.0,0.00036,7]
[357732008,1744398638986,-151.0,0.00036,7]
[357732009,1744398638995,-208.592955,0.00036,7]
[357732010,1744398639005,-208.592955,0.00036,7]
[357732011,1744398639015,-151.0,0.00036,7]
[357732012,1744398639024,-151.0,0.00036,7]
[357732013,1744398639033,-151.0,0.00036,7]
[357732014,1744398639042,-151.0,0.00036,7]
[357732015,1744398639051,-267.034241,0.00036,7]
[357732016,1744398639061,-151.0,0.00036,7]
[357732017,1744398639070,-151.0,0.00036,7]
[357732018,1744398639079,-152.424054,0.00036,7]
[357732019,1744398639089,-571.5799176,0.00036,7]
[357732020,1744398639105,-1119.44319199,0.0003528,5]
[357732021,1744398639114,-333.4192184,0.00036,7]
[357732022,1744398639125,-904.999136,0.00036,7]
[357732023,1744398639134,-166.378232,0.00036,7]
[357732024,1744398639143,-703.702721,0.00036,7]
[357732025,1744398639336,-166.378232,0.00036,7]
[357732026,1744398639346,-703.702721,0.00036,7]
[357732027,1744398639355,-152.630415,0.00036,7]
[357732028,1744398639365,-151.0,0.00036,7]
[357732029,1744398639376,-945.9105029,0.00036017,2]
[357732030,1744398639386,-73412.5865867,0.00036042,2]
[357732031,1744398639396,-2786.8369896,0.00036067,2]
[357732032,1744398639406,-1428.7856507,0.00036092,2]
[357732033,1744398639415,-20649.6480022,0.00036092,2]
[357732034,1744398639425,-1032.1769224,0.00036092,2]
[357732035,1744398639435,-3162.0,0.00036143,2]
[357732036,1744398639445,-1227.94,0.00036167,5]
[357732037,1744398639455,-1236.39,0.00036403,5]
[357732038,1744398639464,-1273.26,0.00036403,5]
[357732039,1744398639474,-1229.47,0.00036403,5]
[357732040,1744398639484,-1252.23,0.00036403,5]
[357732041,1744398639494,-1228.47,0.00036404,5]
[357732042,1744398639506,-380.12402923,0.00036421,2]
[357732043,1744398639515,-166.66,0.00036527,2]
[357732044,1744398639525,-159.86,0.00036587,2]
[357732045,1744398639534,-1255.18,0.00036587,5]
[357732046,1744398639544,-1243.31,0.00036587,5]
[357732047,1744398639553,-1232.33,0.00036587,5]
[357732048,1744398639562,-1269.35,0.00036587,5]
[357732049,1744398639572,-1260.4,0.00036587,5]
[357732050,1744398639582,-1274.14,0.00036587,5]
[357732051,1744398639592,-1252.02,0.00036587,5]
[357732052,1744398639601,-1229.97,0.00036587,5]
[357732053,1744398639614,-1237.77,0.00036588,5]
[357732054,1744398639625,-1253.14,0.00036588,5]
[357732055,1744398639635,-1230.55,0.00036588,5]
[357732056,1744398639644,-17127.0,0.00036685,120]
[357732057,1744398639655,-6575.08,0.000367,2]
[357732058,1744398639664,-6407.34,0.000367,2]
[357732059,1744398639674,-519.31,0.000367,2]
[357732060,1744398639685,-180.4,0.00036715,120]
[357732061,1744398639695,-20000.0,0.00036732,5]
[357732062,1744398639705,-1237.64,0.00036811,5]
[357732063,1744398639714,-209.0,0.0003687,30]
[357732064,1744398639724,-500.0,0.000369,32]
[357732065,1744398639733,-1259.14,0.00036906,5]
[357732066,1744398639742,-6586.30275366,0.00036922,2]
[357732067,1744398639752,-1238.85,0.00036947,5]
[357732068,1744398639761,-1264.32,0.00036947,5]
[357732069,1744398639772,-372.24800058,0.00036976,2]
[357732070,1744398639781,-325.59,0.00036986,2]
[357732071,1744398639791,-150833.09550484,0.00037,2]
[357732072,1744398639801,-3000.0,0.00037,2]
[357732073,1744398639811,-1557.5,0.00037,2]
[357732074,1744398639820,-73.42562597,0.00037,38]
[357732075,1744398640454,-1726.57437403,0.00037,38]
[357732076,1744398640463,-700.0,0.00037,2]
[357732077,1744398640474,-1265.97,0.00037003,5]
[357732078,1744398640483,-1244.54,0.00037003,5]
[357732079,1744398640493,-1264.93,0.00037003,5]